bitfinex/quotes_SOLUSD_20220311
["timestamp","ask_amount","ask_price","bid_price","bid_amount"]
[1647022189971,123.6,81.158,81.09,32.9146]
[1647022190171,24.7097,81.159,81.09,32.9146]
[1647022190971,123.6,81.158,81.09,32.9146]
[1647022191473,6.163,81.157,81.09,32.9146]
[1647022191685,197.76,81.149,81.09,32.9146]
[1647022191877,6.163,81.148,81.09,14.42]
[1647022192075,6.163,81.148,81.083,23.4538]
[1647022192674,197.76,81.146,81.083,23.4538]
[1647022192872,6.164,81.145,81.083,23.4538]
[1647022193072,197.76,81.139,81.083,23.4538]
[1647022193273,74.16,81.137,81.083,23.4538]
[1647022193873,22.653,81.136,81.083,23.4538]
[1647022194078,22.653,81.136,81.09,18.4958]
[1647022196377,22.653,81.136,81.09,32.9158]
[1647022202296,24.8935,81.156,81.09,32.9158]
[1647022202490,5.77,81.16,81.091,3.04447957]
[1647022202891,5.77,81.16,81.111,48.61920262]
[1647022203089,6.162,81.196,81.12,14.42]
[1647022203290,18.4855,81.19,81.12,14.42]
[1647022203488,6.16,81.189,81.12,14.42]
[1647022204088,6.16,81.189,81.14,18.4844]
[1647022204793,18.4855,81.19,81.14,18.4844]
[1647022204990,6.16,81.196,81.14,18.4844]
[1647022206188,22.9379,81.197,81.14,18.4844]
[1647022209092,6.16,81.196,81.14,18.4844]
[1647022210395,22.9379,81.197,81.14,18.4844]
[1647022211997,123.6,81.196,81.14,18.4844]
[1647022212398,123.6,81.194,81.14,18.4844]
[1647022212997,6.16,81.193,81.14,18.4844]
[1647022213197,123.6,81.189,81.14,18.4844]
[1647022213397,123.6,81.189,81.131,23.0207]
[1647022215101,18.487,81.18,81.131,23.0207]
[1647022215299,146.1669,81.179,81.131,23.0207]
[1647022216304,22.5669,81.179,81.131,23.0207]
[1647022217305,146.1669,81.179,81.131,23.0207]
[1647022218205,6.16,81.178,81.131,23.0207]
[1647022219008,6.16,81.178,81.12,18.4887]
[1647022219009,197.76,81.177,81.12,18.4887]
[1647022219205,6.16,81.176,81.12,18.4887]
[1647022219805,24.3772,81.175,81.12,18.4887]
[1647022220509,6.16,81.174,81.12,18.4887]
[1647022220908,129.76,81.174,81.12,18.4887]
[1647022221106,74.16,81.168,81.12,18.4887]
[1647022221307,197.76,81.159,81.092,3.04447957]
[1647022221529,197.76,81.159,81.09,61.6334]
[1647022221530,6.163,81.158,81.091,24.1164]
[1647022221830,123.6,81.156,81.092,51.91603685]
[1647022222030,18.4947,81.15,81.092,51.91603685]
[1647022222430,148.1703,81.149,81.093,3.04447957]
[1647022223230,148.1703,81.149,81.1,18.4941]
[1647022223631,24.5703,81.149,81.1,18.4941]
[1647022225135,6.163,81.158,81.1,18.4941]
[1647022225339,74.16,81.177,81.1,21.53857957]
[1647022225340,28.9886,81.176,81.1,21.53857957]
[1647022225532,28.9886,81.176,81.101,24.4237]
[1647022225735,28.9886,81.176,81.12,18.4891]
[1647022225933,28.9886,81.176,81.121,50.9199943]
[1647022227137,18.4895,81.17,81.121,50.9199943]
[1647022228135,28.9886,81.176,81.13,18.4869]
[1647022228136,22.8256,81.176,81.13,18.4869]
[1647022232645,129.76,81.175,81.13,18.4869]
[1647022232843,129.76,81.175,81.121,50.9199943]
[1647022233651,6.16,81.175,81.121,50.9199943]
[1647022235249,6.16,81.175,81.13,18.487]
[1647022240255,22.8256,81.176,81.13,18.487]
[1647022240654,22.8256,81.176,81.122,24.0715]
[1647022242657,22.8256,81.176,81.13,18.4872]
[1647022243460,123.6,81.175,81.122,24.0715]
[1647022244866,18.4897,81.17,81.122,24.0715]
[1647022245466,22.8256,81.176,81.122,24.0715]
[1647022246672,129.76,81.175,81.122,24.0715]
[1647022249993,6.16,81.175,81.122,24.0715]
[1647022250994,129.76,81.175,81.122,24.0715]
[1647022251193,123.6,81.169,81.122,24.0715]
[1647022251395,123.6,81.167,81.12,18.4888]
[1647022251596,123.6,81.165,81.12,18.4888]
[1647022251797,123.6,81.165,81.11,68.67540493]
[1647022252299,24.6599,81.166,81.11,68.67540493]
[1647022253195,26.33145913,81.166,81.11,68.67540493]
[1647022255299,1.67155913,81.165,81.11,68.67540493]
[1647022255899,26.33145913,81.166,81.11,68.67540493]
[1647022256101,1.67155913,81.165,81.11,68.67540493]
[1647022256603,1.67155913,81.164,81.11,68.67540493]
[1647022257204,1.67155913,81.164,81.11,18.4912]
[1647022257503,1.67155913,81.16,81.11,18.4912]
[1647022257703,131.43355913,81.162,81.11,18.4912]
[1647022257903,7.83355913,81.162,81.11,18.4912]
[1647022258105,1.67155913,81.161,81.111,54.5875708]
[1647022258504,1.67155913,81.162,81.111,54.5875708]
[1647022258932,1.67155913,81.163,81.111,54.5875708]
[1647022259105,7.83355913,81.162,81.111,54.5875708]
[1647022259307,24.6599,81.166,81.111,54.5875708]
[1647022259308,1.67155913,81.164,81.111,54.5875708]
[1647022259505,6.162,81.163,81.111,54.5875708]
[1647022260409,6.162,81.163,81.11,18.4912]
[1647022260809,123.6,81.162,81.11,18.4912]
[1647022262016,7.83355913,81.163,81.103,23.4521]
[1647022262017,123.6,81.156,81.103,23.4521]
[1647022262211,123.6,81.154,81.103,23.4521]
[1647022262412,6.163,81.153,81.103,23.4521]
[1647022263014,123.6,81.146,81.09,18.4955]
[1647022263515,6.163,81.145,81.09,18.4955]
[1647022263713,6.163,81.145,81.083,23.1812]
[1647022263714,123.6,81.144,81.083,23.1812]
[1647022264716,123.6,81.139,81.083,23.1812]
[1647022264917,129.764,81.139,81.083,23.1812]
[1647022265719,6.164,81.139,81.083,23.1812]
[1647022265920,6.164,81.139,81.084,13.12159306]
[1647022267138,6.164,81.139,81.085,6.164]
[1647022267636,6.164,81.139,81.09,18.4964]
[1647022267835,6.164,81.144,81.09,18.4964]
[1647022269435,23.9031,81.145,81.091,6.163]
[1647022269839,23.9031,81.145,81.1,18.494]
[1647022270136,24.7401,81.157,81.101,64.91025434]
[1647022270338,24.7401,81.157,81.101,67.95473391]
[1647022270539,24.7401,81.157,81.102,3.04447957]
[1647022271038,24.7401,81.157,81.11,18.4917]
[1647022272142,24.7401,81.157,81.102,23.2736]
[1647022274847,24.7401,81.157,81.11,18.4915]
[1647022275145,18.4915,81.17,81.11,18.4915]
[1647022275146,6.162,81.156,81.11,18.4915]
[1647022275349,6.162,81.165,81.11,18.4915]
[1647022275548,6.162,81.168,81.111,22.6496]
[1647022276852,6.162,81.168,81.12,18.4894]
[1647022277049,22.8922,81.169,81.12,18.4894]
[1647022277451,126.94580847,81.196,81.121,6.16]
[1647022277452,1.67155913,81.176,81.121,6.16]
[1647022277650,1.67155913,81.177,81.122,22.6496]
[1647022277851,1.67155913,81.177,81.123,6.16]
[1647022278251,1.67155913,81.177,81.13,18.486]
[1647022282753,6.16,81.176,81.13,18.486]
[1647022282955,6.16,81.176,81.131,23.8948]
[1647022283156,6.16,81.178,81.131,23.8948]
[1647022283556,23.6143,81.177,81.131,23.8948]
[1647022287056,23.6143,81.177,81.132,6.16]
[1647022289361,23.6143,81.177,81.131,30.0548]
[1647022292166,23.6143,81.177,81.131,23.8948]
[1647022301000,123.6,81.176,81.131,23.8948]
[1647022301204,6.16,81.175,81.131,23.8948]
[1647022301402,123.6,81.174,81.131,23.8948]
[1647022301603,6.16,81.173,81.131,23.8948]
[1647022301803,147.3335,81.172,81.131,23.8948]
[1647022302003,1.67155913,81.17,81.131,23.8948]
[1647022302204,123.6,81.166,81.112,6.16]
[1647022302504,123.6,81.164,81.112,6.16]
[1647022302705,23.7335,81.165,81.112,6.16]
[1647022303303,23.7335,81.165,81.113,24.2523]
[1647022306409,23.7335,81.165,81.12,18.4894]
[1647022311436,23.7335,81.165,81.113,24.2523]
[1647022315018,23.7335,81.165,81.12,18.4895]
[1647022325826,23.7335,81.165,81.121,6.16]
[1647022328859,23.7335,81.165,81.12,18.4895]
[1647022335363,23.7335,81.165,81.121,6.16]
[1647022338666,23.7335,81.165,81.12,18.4895]
[1647022339272,23.7335,81.165,81.114,6.16]
[1647022339669,25.40505913,81.165,81.114,6.16]
[1647022339871,123.6,81.164,81.114,6.16]
[1647022340672,1.67155913,81.157,81.094,6.162]
[1647022340871,1.67155913,81.145,81.089,6.163]
[1647022341070,0.0338524,81.098,81.088,24.1264]
[1647022341272,0.0338524,81.098,81.088,71.17855948]
[1647022341470,0.0338524,81.098,81.089,6.165]
[1647022342074,0.0338524,81.098,81.088,24.1264]
[1647022344678,0.0338524,81.098,81.089,6.165]
[1647022344882,0.0338524,81.098,81.081,6.165]
[1647022345281,0.0338524,81.098,81.072,23.4942]
[1647022345979,0.00617737,81.098,81.072,23.4942]
[1647022346483,0.00617737,81.098,81.071,6.166]
[1647022347085,0.00617737,81.098,81.062,6.166]
[1647022350986,123.6,81.096,81.062,6.166]
[1647022351785,123.6,81.096,81.037,3.04447957]
[1647022351986,123.6,81.094,81.038,23.5817]
[1647022352587,123.6,81.086,81.04,18.5072]
[1647022352812,74.16,81.087,81.038,23.5817]
[1647022353017,22.8256,81.086,81.038,23.5817]
[1647022353912,18.5098,81.08,81.038,23.5817]
[1647022355014,6.168,81.085,81.04,18.5075]
[1647022355218,22.8256,81.086,81.04,18.5075]
[1647022355415,18.5065,81.09,81.041,38.40174335]
[1647022355716,22.7081,81.108,81.041,38.40174335]
[1647022355917,22.7081,81.108,81.042,38.40174335]
[1647022356321,22.7081,81.108,81.051,64.06124691]
[1647022356718,6.167,81.107,81.052,38.40174335]
[1647022357117,6.167,81.107,81.053,16.16607263]
[1647022357519,6.167,81.107,81.054,16.16607263]
[1647022357918,6.167,81.107,81.055,16.16607263]
[1647022358118,6.167,81.107,81.06,32.9205]
[1647022358520,6.166,81.124,81.061,3.04447957]
[1647022358720,6.166,81.152,81.061,31.58754641]
[1647022358919,6.166,81.152,81.062,26.46266405]
[1647022359120,6.166,81.158,81.062,42.62873668]
[1647022359321,18.4937,81.15,81.07,18.4955]
[1647022359521,6.166,81.149,81.08,14.42]
[1647022359830,23.311,81.148,81.081,52.06960874]
[1647022360030,6.166,81.147,81.081,55.11408831]
[1647022360225,6.166,81.147,81.082,3.04447957]
[1647022361120,6.166,81.147,81.082,16.16607263]
[1647022361921,153.09092441,81.14,81.082,3.04447957]
[1647022362322,22.6769,81.139,81.082,3.04447957]
[1647022362921,6.166,81.138,81.082,3.04447957]
[1647022367930,22.6769,81.139,81.083,13.12159306]
[1647022369629,22.6769,81.139,81.082,3.04447957]
[1647022371130,6.165,81.138,81.081,75.89170874]
[1647022371631,18.4976,81.13,81.081,75.89170874]
[1647022372232,24.4684,81.129,81.081,75.89170874]
[1647022374232,24.4684,81.129,81.082,13.12159306]
[1647022376635,24.4684,81.129,81.081,75.89170874]
[1647022376834,24.4684,81.129,81.081,23.8221]
[1647022378035,6.166,81.128,81.081,23.8221]
[1647022384743,18.4994,81.12,81.08,18.4942]
[1647022384947,24.391,81.119,81.08,18.4942]
[1647022391167,24.391,81.119,81.081,13.12159306]
[1647022393266,24.391,81.119,81.08,32.9142]
[1647022404079,24.391,81.119,81.08,18.4942]
[1647022406680,24.391,81.119,81.08,21.53867957]
[1647022409085,24.391,81.119,81.08,18.4942]
[1647022410091,24.391,81.119,81.081,6.165]
[1647022411990,24.391,81.119,81.09,18.4963]
[1647022412818,6.164,81.139,81.09,18.4963]
[1647022413123,24.1069,81.138,81.1,18.4912]
[1647022413327,24.1069,81.138,81.102,47.1901779]
[1647022413520,24.1069,81.138,81.103,6.163]
[1647022413719,24.1069,81.138,81.103,15.7682761]
[1647022413921,24.1069,81.138,81.103,48.79173668]
[1647022414121,24.1069,81.138,81.11,18.4896]
[1647022414323,24.1069,81.138,81.11,32.9096]
[1647022414520,24.1069,81.138,81.11,35.95407957]
[1647022414722,24.1069,81.138,81.111,6.163]
[1647022415922,6.163,81.168,81.12,18.4895]
[1647022416123,23.0094,81.167,81.12,18.4895]
[1647022416324,1.67155913,81.178,81.121,23.2464]
[1647022416524,1.67155913,81.18,81.121,26.29087957]
[1647022416725,1.67155913,81.181,81.122,3.04447957]
[1647022416927,6.16,81.18,81.122,3.04447957]
[1647022417124,6.16,81.183,81.122,3.04447957]
[1647022417926,6.16,81.183,81.123,6.16]
[1647022418127,18.4867,81.18,81.13,18.4859]
[1647022418326,18.4867,81.18,81.131,63.68285271]
[1647022420930,18.4867,81.18,81.132,6.16]
[1647022423131,23.0094,81.185,81.14,18.485]
[1647022443573,1.67155913,81.184,81.14,18.485]
[1647022443773,7.83155913,81.184,81.14,18.485]
[1647022443974,1.67155913,81.183,81.14,18.485]
[1647022444774,7.83155913,81.184,81.14,18.485]
[1647022444974,1.67155913,81.183,81.14,18.485]
[1647022445873,1.67155913,81.182,81.14,18.485]
[1647022446677,1.67155913,81.181,81.14,18.485]
[1647022446877,1.67155913,81.182,81.14,18.485]
[1647022447075,1.67155913,81.181,81.14,18.485]
[1647022447275,1.67155913,81.182,81.14,18.485]
[1647022447874,1.67155913,81.181,81.14,18.485]
[1647022448975,1.67155913,81.18,81.14,18.485]
[1647022449376,20.15805913,81.18,81.134,6.16]
[1647022450077,17.65805913,81.18,81.134,6.16]
[1647022450282,17.65805913,81.18,81.135,53.1678437]
[1647022453576,17.65805913,81.18,81.134,6.16]
[1647022454577,17.65805913,81.18,81.134,66.82059301]
[1647022455377,197.76,81.169,81.134,6.16]
[1647022455580,197.76,81.167,81.134,6.16]
[1647022455780,6.16,81.166,81.101,3.04447957]
[1647022455981,123.6,81.165,81.091,23.1231]
[1647022456177,197.76,81.157,81.091,23.1231]
[1647022456378,123.6,81.156,81.092,62.16800483]
[1647022456780,18.4927,81.15,81.1,18.4932]
[1647022457379,24.3235,81.149,81.1,18.4932]
[1647022458379,18.4951,81.14,81.091,23.1231]
[1647022458583,197.76,81.138,81.074,3.04447957]
[1647022458780,203.924,81.138,81.074,3.04447957]
[1647022459379,123.6,81.136,81.075,50.5847735]
[1647022459784,98.4835,81.137,81.075,50.5847735]
[1647022460182,18.497,81.13,81.08,18.4976]
[1647022463782,18.497,81.13,81.081,24.9667]
[1647022470993,6.164,81.129,81.081,24.9667]
[1647022471197,18.5004,81.12,81.081,24.9667]
[1647022471396,23.9332,81.119,81.081,24.9667]
[1647022474000,18.5016,81.11,81.081,24.9667]
[1647022474398,18.5016,81.11,81.068,6.165]
[1647022474598,23.9304,81.109,81.068,6.165]
[1647022474997,23.9304,81.109,81.061,23.9464]
[1647022476398,23.9304,81.109,81.067,16.97863723]
[1647022479408,23.9304,81.109,81.067,5.76538787]
[1647022480607,6.166,81.108,81.067,5.76538787]
[1647022482607,30.0964,81.109,81.067,5.76538787]
[1647022483209,23.9304,81.109,81.067,16.97863723]
[1647022483413,23.9304,81.109,81.07,18.5009]
[1647022483812,23.9304,81.109,81.071,20.42372893]
[1647022484215,23.9304,81.109,81.072,11.21324936]
[1647022484412,23.9304,81.109,81.074,55.61083578]
[1647022484612,6.166,81.135,81.074,55.61083578]
[1647022484812,23.4699,81.134,81.08,18.4986]
[1647022485013,6.164,81.133,81.08,18.4986]
[1647022485214,6.164,81.133,81.081,14.25772893]
[1647022485615,6.164,81.133,81.082,11.21324936]
[1647022487417,23.4699,81.134,81.09,18.496]
[1647022487833,23.4699,81.134,81.09,47.17372893]
[1647022488634,6.164,81.159,81.09,47.17372893]
[1647022488834,22.8485,81.158,81.091,23.3213]
[1647022489033,6.163,81.157,81.1,18.4929]
[1647022489233,6.163,81.157,81.101,63.43813958]
[1647022491739,22.8485,81.158,81.101,63.43813958]
[1647022493738,22.8485,81.158,81.102,24.5515]
[1647022495441,6.162,81.157,81.102,24.5515]
[1647022498942,22.8485,81.158,81.102,24.5515]
[1647022502247,6.162,81.157,81.102,24.5515]
[1647022503347,6.162,81.157,81.103,11.21324936]
[1647022504350,6.162,81.157,81.102,24.5515]
[1647022508758,22.8485,81.158,81.102,24.5515]
[1647022514963,6.162,81.167,81.11,18.4914]
[1647022515165,30.9437,81.182,81.111,23.9054]
[1647022515364,24.7817,81.182,81.111,38.16312893]
[1647022515563,24.7817,81.182,81.112,5.60662468]
[1647022515764,24.7817,81.182,81.112,34.67243635]
[1647022516067,6.16,81.194,81.131,56.16715458]
[1647022516463,6.16,81.194,81.132,14.25772893]
[1647022516964,6.16,81.194,81.133,35.11864936]
[1647022517367,24.7938,81.193,81.133,35.11864936]
[1647022517566,6.16,81.192,81.133,35.11864936]
[1647022517866,6.16,81.192,81.14,18.4821]
[1647022518675,24.7938,81.193,81.14,32.9021]
[1647022521798,6.16,81.219,81.141,14.25772893]
[1647022521799,29.7365,81.219,81.141,14.25772893]
[1647022521997,6.159,81.227,81.142,147.8188]
[1647022522204,6.159,81.227,81.142,162.07652893]
[1647022522496,16.659612,81.234,81.151,123.6]
[1647022522698,16.659612,81.234,81.152,5.57403629]
[1647022522898,1.2e-05,81.234,81.182,58.47864613]
[1647022523098,6.158,81.293,81.186,5.30811796]
[1647022523299,6.155,81.299,81.201,123.6]
[1647022523700,6.155,81.299,81.202,24.6568]
[1647022523900,6.155,81.299,81.202,58.20770778]
[1647022524099,6.155,81.299,81.203,8.65110425]
[1647022524300,4.6993158,81.299,81.203,33.55090778]
[1647022524500,4.6993158,81.299,81.204,35.00590778]
[1647022524906,4.6993158,81.299,81.205,33.55090778]
[1647022525116,4.6993158,81.299,81.22,18.4658]
[1647022525308,4.6993158,81.299,81.221,1.455]
[1647022526103,4.6993158,81.299,81.23,18.4615]
[1647022527003,202.4593158,81.299,81.23,18.4615]
[1647022528102,18.4623,81.29,81.23,18.4615]
[1647022528305,80.312,81.289,81.23,18.4615]
[1647022528703,6.152,81.289,81.23,18.4615]
[1647022528905,6.152,81.299,81.23,18.4615]
[1647022529104,31.0497,81.299,81.23,18.4615]
[1647022529304,30.5497,81.299,81.23,18.4615]
[1647022529506,30.5497,81.299,81.23,32.8815]
[1647022529906,24.8977,81.299,81.231,1.955]
[1647022530106,18.4627,81.29,81.232,55.76938522]
[1647022530312,18.4627,81.29,81.233,1.955]
[1647022533407,6.152,81.289,81.233,1.955]
[1647022536816,18.49271245,81.29,81.233,1.955]
[1647022539113,23.8227,81.289,81.233,1.955]
[1647022539315,18.4638,81.28,81.233,1.955]
[1647022539916,74.16,81.279,81.233,1.955]
[1647022540127,197.76,81.276,81.233,1.955]
[1647022540319,197.76,81.269,81.186,18.3929]
[1647022540520,197.76,81.267,81.19,14.42]
[1647022540817,197.76,81.265,81.193,55.44855171]
[1647022541016,197.76,81.263,81.2,18.4693]
[1647022541221,74.16,81.261,81.2,18.4693]
[1647022541618,18.471,81.25,81.2,18.4693]
[1647022542020,18.471,81.25,81.193,55.44855171]
[1647022542519,197.76,81.246,81.193,55.44855171]
[1647022542720,18.4726,81.24,81.19,18.4716]
[1647022543821,18.4726,81.24,81.19,29.68484936]
[1647022546328,17.9726,81.24,81.19,29.68484936]
[1647022549554,6.156,81.239,81.19,29.68484936]
[1647022550665,6.156,81.239,81.19,18.4716]
[1647022551064,18.4742,81.23,81.18,18.4746]
[1647022551489,18.4742,81.23,81.18,32.8946]
[1647022551666,18.4742,81.23,81.181,49.82836458]
[1647022551864,18.4742,81.23,81.181,61.04161394]
[1647022552465,18.4742,81.23,81.182,11.21324936]
[1647022553765,18.4742,81.23,81.181,49.82836458]
[1647022554974,18.4726,81.24,81.19,18.4726]
[1647022555168,6.157,81.266,81.2,14.42]
[1647022555369,6.155,81.276,81.21,14.42]
[1647022555669,6.155,81.276,81.211,59.40026992]
[1647022555868,24.1713,81.277,81.211,91.10976159]
[1647022556069,24.1713,81.277,81.22,18.466]
[1647022556268,24.1713,81.277,81.22,32.886]
[1647022556470,24.1713,81.277,81.221,5.60662468]
[1647022556671,24.1713,81.277,81.221,11.21324936]
[1647022557173,24.1713,81.277,81.23,18.4637]
[1647022560875,18.4659,81.27,81.22,18.4659]
[1647022561473,18.4659,81.27,81.221,11.21324936]
[1647022565282,18.4659,81.27,81.22,18.4659]
[1647022566080,18.4659,81.27,81.221,61.59221217]
[1647022566504,18.4659,81.27,81.222,11.21324936]
[1647022567279,15.4659,81.27,81.222,11.21324936]
[1647022568683,24.1713,81.277,81.23,18.4643]
[1647022572382,18.4653,81.27,81.22,18.4662]
[1647022576594,24.20131245,81.277,81.221,11.21324936]
[1647022576791,24.20131245,81.277,81.23,18.4619]
[1647022577189,24.20131245,81.277,81.23,32.8819]
[1647022581196,0.03001245,81.277,81.23,44.09514936]
[1647022582613,0.03001245,81.277,81.23,32.8819]
[1647022583515,0.03001245,81.277,81.231,11.21324936]
[1647022583715,0.03001245,81.277,81.241,64.34798642]
[1647022583914,22.56141245,81.282,81.241,64.34798642]
[1647022585219,0.03001245,81.282,81.25,18.4597]
[1647022587417,0.03001245,81.282,81.232,43.2547]
[1647022587618,0.03001245,81.282,81.24,18.4613]
[1647022589021,0.03001245,81.282,81.232,24.6455]
[1647022589221,1.70053841,81.282,81.232,24.6455]
[1647022589622,0.03001245,81.282,81.232,24.6455]
[1647022589823,1.67052596,81.281,81.232,24.6455]
[1647022590021,1.67052596,81.28,81.232,24.6455]
[1647022590321,197.76,81.276,81.23,18.4634]
[1647022590922,197.76,81.276,81.22,18.4656]
[1647022591123,123.6,81.274,81.22,18.4656]
[1647022591628,1.67052596,81.266,81.213,23.4364]
[1647022591824,6.154,81.265,81.213,23.4364]
[1647022592023,24.1625,81.264,81.213,23.4364]
[1647022592223,6.154,81.263,81.213,23.4364]
[1647022593124,18.469,81.26,81.213,23.4364]
[1647022595227,127.73014688,81.26,81.213,23.4364]
[1647022598633,127.73014688,81.26,81.213,34.64964936]
[1647022599038,197.76,81.256,81.21,18.4681]
[1647022599230,18.4702,81.25,81.2,18.4702]
[1647022599631,18.4702,81.25,81.2,29.68344936]
[1647022599832,18.4702,81.25,81.201,55.2433312]
[1647022600232,18.4702,81.25,81.202,11.21324936]
[1647022600432,24.2874,81.255,81.21,18.4684]
[1647022600833,24.2874,81.255,81.211,11.21324936]
[1647022602236,24.2874,81.255,81.22,18.4664]
[1647022602634,0.03001245,81.26,81.221,11.21324936]
[1647022604235,0.03001245,81.25,81.221,11.21324936]
[1647022605636,0.03001245,81.25,81.231,59.82233976]
[1647022606535,0.03001245,81.25,81.23,18.4641]
[1647022609437,22.75421245,81.269,81.23,18.4641]
[1647022614844,22.75421245,81.269,81.22,42.4654]
[1647022615846,18.4673,81.26,81.22,23.9993]
[1647022617450,18.4673,81.26,81.221,11.21324936]
[1647022622359,18.4673,81.26,81.22,42.4656]
[1647022622980,18.4673,81.26,81.22,53.67884936]
[1647022623986,1.67052596,81.265,81.22,53.67884936]
[1647022624485,1.67052596,81.266,81.22,53.67884936]
[1647022624686,0.03001245,81.26,81.22,53.67884936]
[1647022627888,0.03001245,81.26,81.23,17.74]
[1647022628090,0.03001245,81.26,81.24,18.4607]
[1647022628489,0.03001245,81.26,81.241,11.21324936]
[1647022630192,0.03001245,81.26,81.25,18.46]
[1647022630790,1.245e-05,81.26,81.25,18.46]
[1647022630991,1.245e-05,81.26,81.251,24.3175]
[1647022631591,1.245e-05,81.26,81.251,35.53074936]
[1647022631990,1.245e-05,81.26,81.252,19.11238469]
[1647022632392,1.245e-05,81.26,81.253,53.38402147]
[1647022632594,1.67052596,81.319,81.261,123.6]
[1647022632796,6.152,81.324,81.27,36.1881]
[1647022632999,1.67052596,81.334,81.27,36.1881]
[1647022633196,1.67052596,81.341,81.272,123.6]
[1647022633393,1.67052596,81.342,81.272,123.6]
[1647022633892,1.67052596,81.344,81.28,18.4467]
[1647022634093,1.67052596,81.344,81.29,17.74]
[1647022634292,1.67052596,81.351,81.29,17.74]
[1647022634893,1.67052596,81.351,81.3,18.4443]
[1647022635094,1.67052596,81.351,81.301,48.52132557]
[1647022635295,24.0592,81.353,81.301,48.52132557]
[1647022635896,24.0592,81.353,81.31,18.4452]
[1647022636497,6.147,81.352,81.31,18.4452]
[1647022636697,24.0592,81.353,81.31,18.4452]
[1647022637398,24.0592,81.353,81.3,18.4479]
[1647022637600,27.63459869,81.352,81.3,18.4479]
[1647022637997,21.48659869,81.351,81.3,18.4479]
[1647022638198,18.4483,81.35,81.3,18.4479]
[1647022638398,6.148,81.349,81.29,18.45]
[1647022638596,74.16,81.344,81.29,18.45]
[1647022638797,123.6,81.335,81.275,23.4684]
[1647022638998,6.149,81.334,81.275,23.4684]
[1647022639598,23.691,81.333,81.275,23.4684]
[1647022639901,6.149,81.332,81.275,23.4684]
[1647022640100,123.6,81.327,81.25,61.5111]
[1647022640302,123.6,81.325,81.252,23.4684]
[1647022640501,6.15,81.324,81.252,23.4684]
[1647022640700,203.91,81.324,81.252,23.4684]
[1647022640900,197.76,81.322,81.252,23.4684]
[1647022641100,6.151,81.321,81.252,23.4684]
[1647022641546,197.76,81.319,81.252,23.4684]
[1647022641702,18.457,81.31,81.26,18.4568]
[1647022642505,18.457,81.31,81.252,23.4684]
[1647022643509,123.6,81.302,81.237,3.04447957]
[1647022643706,18.4614,81.29,81.24,18.4614]
[1647022644209,197.76,81.286,81.221,34.61254936]
[1647022645016,23.0242,81.285,81.221,34.61254936]
[1647022645212,23.0242,81.285,81.221,37.65702893]
[1647022646111,18.4634,81.28,81.23,18.4634]
[1647022647614,197.76,81.279,81.221,14.25772893]
[1647022647812,18.4663,81.27,81.22,18.4659]
[1647022648013,23.0242,81.285,81.22,18.4659]
[1647022648014,203.914,81.269,81.22,18.4659]
[1647022648812,203.914,81.269,81.202,3.04447957]
[1647022649314,203.914,81.269,81.198,5.60662468]
[1647022649713,197.76,81.256,81.201,23.86802468]
[1647022649916,18.4701,81.25,81.201,5.60662468]
[1647022652214,6.155,81.249,81.201,5.60662468]
[1647022652413,6.155,81.249,81.192,21.32867957]
[1647022652414,203.915,81.249,81.192,21.32867957]
[1647022652613,80.315,81.249,81.193,11.21324936]
[1647022652820,80.315,81.249,81.193,14.25772893]
[1647022653215,80.315,81.249,81.194,11.21324936]